fUSD/lending_fUSD_20250416
["ID","MTS","AMOUNT","RATE_DAILY","PERIOD"]
[358174107,1744815658542,-777.77,0.00056712,120]
[358174108,1744815658583,-675.56,0.00056712,120]
[358174109,1744815658624,-1832.58,0.00056712,120]
[358174110,1744815658664,-500.0,0.00056712,120]
[358174111,1744815658814,-150.1,0.00056715,57]
[358174112,1744815658854,-353.43074462,0.00056815,120]
[358174113,1744815658895,-150.98555835,0.00056852,57]
[358174114,1744815658934,-1995.0,0.000569,120]
[358174115,1744815658974,-150.0,0.000569,120]
[358174116,1744815659014,-160.0,0.000569,120]
[358174117,1744815659055,-151.0,0.00056932,120]
[358174118,1744815659095,-400.0,0.0005697,30]
[358174119,1744815659137,-700.0,0.0005697,30]
[358174120,1744815659179,-2348.95,0.00056986,120]
[358174121,1744815659221,-1468.09,0.00056986,120]
[358174122,1744815659265,-500.0,0.00056986,120]
[358174123,1744815659306,-1198.89,0.00056986,120]
[358174124,1744815659349,-175.99458048,0.00056986,120]
[358174125,1744815659390,-804.94,0.00056986,120]
[358174126,1744815659433,-500.0,0.00056986,120]
[358174127,1744815659491,-982.93,0.00056986,120]
[358174128,1744815659538,-500.0,0.00056986,120]
[358174129,1744815659586,-822.51,0.00056986,120]
[358174130,1744815659631,-875.93,0.00056986,120]
[358174131,1744815659675,-1346.23,0.00056986,120]
[358174132,1744815659722,-782.45,0.00056986,120]
[358174133,1744815659769,-835.33,0.00056986,120]
[358174134,1744815659815,-500.0,0.00056986,30]
[358174135,1744815659860,-500.0,0.00056986,120]
[358174136,1744815659905,-989.02,0.00056986,120]
[358174137,1744815659948,-540.42,0.00056986,120]
[358174138,1744815659995,-906.51,0.00056986,120]
[358174139,1744815660040,-500.0,0.00056986,120]
[358174140,1744815660086,-500.0,0.00056986,120]
[358174141,1744815660130,-942.61,0.00056986,120]
[358174142,1744815660172,-500.0,0.00056986,120]
[358174143,1744815660216,-1240.3,0.00056986,120]
[358174144,1744815660263,-727.79,0.00056986,120]
[358174145,1744815660310,-640.87,0.00056986,120]
[358174146,1744815660353,-1040.69,0.00056986,120]
[358174147,1744815660397,-1335.63,0.00056986,120]
[358174148,1744815660448,-1127.15,0.00056986,120]
[358174149,1744815660498,-537.28,0.00056986,120]
[358174150,1744815660546,-1370.04,0.00056986,120]
[358174151,1744815660592,-500.0,0.00056986,120]
[358174152,1744815660637,-500.0,0.00056986,30]
[358174153,1744815660683,-713.87,0.00056986,120]
[358174154,1744815660736,-158.36597584,0.00056986,120]
[358174155,1744815660782,-760.79,0.00056986,120]
[358174156,1744815660830,-1253.28,0.00056986,120]
[358174157,1744815660875,-699.68,0.00056986,120]
[358174158,1744815660922,-851.47,0.00056986,120]
[358174159,1744815660977,-2066.32,0.00056986,120]
[358174160,1744815661030,-776.918619,0.00056986,120]
[358174161,1744815661074,-1167.17,0.00056986,120]
[358174162,1744815661119,-843.34,0.00056986,120]
[358174163,1744815661164,-500.0,0.00056986,120]
[358174164,1744815661207,-500.0,0.00056986,120]
[358174165,1744815661250,-1000.01,0.00056986,120]
[358174166,1744815661293,-500.0,0.00056986,120]
[358174167,1744815661337,-538.45,0.00056986,120]
[358174168,1744815661380,-1339.79,0.00056986,120]
[358174169,1744815661426,-500.0,0.00056986,120]
[358174170,1744815661472,-1104.97,0.00056986,120]
[358174171,1744815661517,-1000.0,0.00056986,120]
[358174172,1744815661563,-500.0,0.00056986,120]
[358174173,1744815661607,-635.45,0.00056986,120]
[358174174,1744815661651,-500.0,0.00056986,120]
[358174175,1744815661698,-641.93,0.00056986,120]
[358174176,1744815661745,-861.11,0.00056986,120]
[358174177,1744815661792,-500.0,0.00056986,30]
[358174178,1744815661836,-500.0,0.00056986,120]
[358174179,1744815661879,-656.9,0.00056986,120]
[358174180,1744815661924,-781.78,0.00056986,120]
[358174181,1744815661969,-874.27,0.00056986,120]
[358174182,1744815662014,-500.0,0.00056986,120]
[358174183,1744815662062,-1191.75,0.00056986,120]
[358174184,1744815662108,-1047.24,0.00056986,120]
[358174185,1744815662154,-524.25,0.00056986,120]
[358174186,1744815662202,-500.0,0.00056986,120]
[358174187,1744815662247,-1133.53,0.00056986,120]
[358174188,1744815662291,-1889.13,0.00056986,120]
[358174189,1744815662592,-500.0,0.00056986,120]
[358174190,1744815662636,-798.31,0.00056986,118]
[358174191,1744815662679,-790.86,0.00056986,120]
[358174192,1744815662723,-1348.27,0.00056986,120]
[358174193,1744815662766,-619.72,0.00056986,120]
[358174194,1744815662809,-1016.06,0.00056986,120]
[358174195,1744815662851,-1311.2,0.00056986,120]
[358174196,1744815662894,-551.59,0.00056986,120]
[358174197,1744815662936,-753.72,0.00056986,120]
[358174198,1744815662979,-500.0,0.00056986,120]
[358174199,1744815663029,-500.0,0.00056986,120]
[358174200,1744815663073,-512.61727322,0.00056986,120]
[358174201,1744815663117,-500.0,0.00056986,120]
[358174202,1744815663162,-585.49,0.00056986,120]
[358174203,1744815663209,-1136.67,0.00056986,120]
[358174204,1744815663254,-970.9,0.00056986,120]
[358174205,1744815663297,-1332.05,0.00056986,120]
[358174206,1744815663340,-670.12,0.00056986,120]
[358174207,1744815663385,-1653.98,0.00056986,120]
[358174208,1744815663428,-514.72,0.00056986,120]
[358174209,1744815663472,-500.0,0.00056986,120]
[358174210,1744815663517,-207.54805856,0.00056986,120]
[358174211,1744815663561,-500.0,0.00056986,120]
[358174212,1744815663605,-514.96,0.00056986,120]
[358174213,1744815663648,-1299.37,0.00056986,120]
[358174214,1744815663697,-500.0,0.00056986,120]
[358174215,1744815663757,-1137.07,0.00056986,120]
[358174216,1744815663807,-1000.0,0.00056986,35]
[358174217,1744815663855,-1135.67,0.00056986,120]
[358174218,1744815663901,-500.0,0.00056986,120]
[358174219,1744815663948,-746.39,0.00056986,120]
[358174220,1744815663994,-1616.65,0.00056986,120]
[358174221,1744815664041,-777.77,0.00056986,120]
[358174222,1744815664086,-675.56,0.00056986,120]
[358174223,1744815664133,-1832.58,0.00056986,120]
[358174224,1744815664178,-150.4558575,0.00056986,120]
[358174225,1744815664227,-6341.36554797,0.00057,57]
[358174226,1744815664276,-50000.0,0.00057,67]
[358174227,1744815664321,-174.75569802,0.00057,120]
[358174228,1744815664370,-1063665.0,0.00057,120]
[358174229,1744815664415,-3000.01,0.00057,120]
[358174230,1744815664466,-309508.91,0.00057,120]
[358174231,1744815664514,-1000000.0,0.00057,120]
[358174232,1744815664566,-1000000.0,0.00057,120]
[358174233,1744815664612,-2110.0,0.00057,30]
[358174234,1744815664657,-151.0,0.00057,120]
[358174235,1744815664705,-184.962166,0.00057,120]
[358174236,1744815664755,-151.0,0.00057,120]
[358174237,1744815664799,-151.0,0.00057,120]
[358174238,1744815664842,-151.0,0.00057,120]
[358174239,1744815664887,-151.0,0.00057,120]
[358174240,1744815664929,-151.0,0.00057,120]
[358174241,1744815664975,-151.0,0.00057,120]
[358174242,1744815665021,-151.0,0.00057,120]
[358174243,1744815665065,-161.011554,0.00057,120]
[358174244,1744815665107,-161.011554,0.00057,120]
[358174245,1744815665151,-151.0,0.00057,120]
[358174246,1744815665195,-151.0,0.00057,120]
[358174247,1744815665240,-151.0,0.00057,120]
[358174248,1744815665286,-151.0,0.00057,120]
[358174249,1744815665331,-324.056454,0.00057,120]
[358174250,1744815665376,-324.056454,0.00057,120]
[358174251,1744815665419,-151.0,0.00057,120]
[358174252,1744815665463,-152.424285,0.00057,120]
[358174253,1744815665506,-151.0,0.00057,120]
[358174254,1744815665550,-151.0,0.00057,120]
[358174255,1744815665595,-151.0,0.00057,120]
[358174256,1744815665639,-151.0,0.00057,120]
[358174257,1744815665687,-151.0,0.00057,120]
[358174258,1744815665735,-151.0,0.00057,120]
[358174259,1744815665864,-151.0,0.00057,120]
[358174260,1744815665907,-937.0036,0.00057,30]
[358174261,1744815665949,-937.0036,0.00057,30]
[358174262,1744815665991,-302.407673,0.00057,120]
[358174263,1744815666038,-302.407673,0.00057,120]
[358174264,1744815666081,-151.0,0.00057,120]
[358174265,1744815666122,-151.0,0.00057,120]
[358174266,1744815666166,-151.0,0.00057,120]
[358174267,1744815666211,-151.0,0.00057,120]
[358174268,1744815666258,-151.0,0.00057,120]
[358174269,1744815666305,-150.0,0.00057146,120]
[358174270,1744815666348,-150.0,0.00057196,120]
[358174271,1744815666394,-1291.19,0.0005726,120]
[358174272,1744815666438,-2405.34,0.0005726,120]
[358174273,1744815666485,-500.0,0.0005726,120]
[358174274,1744815666528,-1550.92,0.0005726,120]
[358174275,1744815666572,-624.93265378,0.0005726,120]
[358174276,1744815666615,-500.0,0.0005726,120]
[358174277,1744815666658,-821.79,0.0005726,120]
[358174278,1744815666700,-500.0,0.0005726,120]
[358174279,1744815666748,-500.0,0.0005726,120]
[358174280,1744815666793,-500.0,0.0005726,120]
[358174281,1744815666839,-500.0,0.0005726,120]
[358174282,1744815666883,-500.0,0.0005726,120]
[358174283,1744815666925,-548.6,0.0005726,120]
[358174284,1744815666967,-500.0,0.0005726,120]
[358174285,1744815667012,-500.0,0.0005726,120]
[358174286,1744815667055,-500.0,0.0005726,120]
[358174287,1744815667099,-500.0,0.0005726,120]
[358174288,1744815667146,-500.0,0.0005726,120]
[358174289,1744815667190,-500.0,0.0005726,120]
[358174290,1744815667238,-248.74966717,0.0005726,120]
[358174291,1744815667282,-500.0,0.0005726,120]
[358174292,1744815667326,-500.0,0.0005726,120]
[358174293,1744815667370,-500.0,0.0005726,120]
[358174294,1744815667415,-500.0,0.0005726,120]
[358174295,1744815667461,-500.0,0.0005726,120]
[358174296,1744815667508,-500.0,0.0005726,120]
[358174297,1744815667553,-500.0,0.0005726,120]
[358174298,1744815667597,-540.63527732,0.0005726,120]
[358174299,1744815667642,-565.42564698,0.0005726,120]
[358174300,1744815667683,-500.0,0.0005726,120]
[358174301,1744815667727,-500.0,0.0005726,120]
[358174302,1744815667769,-500.0,0.0005726,120]
[358174303,1744815667812,-1154.03,0.0005726,120]
[358174304,1744815667856,-560.05,0.0005726,120]
[358174305,1744815667899,-500.0,0.0005726,120]
[358174306,1744815667944,-500.0,0.0005726,120]
[358174307,1744815667987,-500.0,0.0005726,120]
[358174308,1744815668033,-2348.95,0.0005726,120]
[358174309,1744815668076,-348.28034183,0.0005726,120]
[358174310,1744815668119,-1198.89,0.0005726,120]
[358174311,1744815668161,-804.94,0.0005726,120]
[358174312,1744815668202,-500.0,0.0005726,120]
[358174313,1744815668246,-982.93,0.0005726,120]
[358174314,1744815668288,-500.0,0.0005726,120]
[358174315,1744815668333,-822.51,0.0005726,120]
[358174316,1744815668376,-875.93,0.0005726,120]
[358174317,1744815668420,-1346.23,0.0005726,120]
[358174318,1744815668463,-782.45,0.0005726,120]
[358174319,1744815668510,-835.33,0.0005726,120]
[358174320,1744815668551,-500.0,0.0005726,30]
[358174321,1744815668594,-500.0,0.0005726,120]
[358174322,1744815668636,-989.02,0.0005726,120]
[358174323,1744815668680,-540.42,0.0005726,120]
[358174324,1744815668726,-906.51,0.0005726,120]
[358174325,1744815668769,-500.0,0.0005726,120]
[358174326,1744815668812,-500.0,0.0005726,120]
[358174327,1744815668853,-942.61,0.0005726,120]
[358174328,1744815668895,-500.0,0.0005726,120]
[358174329,1744815668937,-1240.3,0.0005726,120]
[358174330,1744815668982,-727.79,0.0005726,120]
[358174331,1744815669028,-640.87,0.0005726,120]
[358174332,1744815669073,-1040.69,0.0005726,120]
[358174333,1744815669116,-1040.69,0.0005726,120]
[358174334,1744815669171,-1335.63,0.0005726,120]
[358174335,1744815669214,-1127.15,0.0005726,120]
[358174336,1744815669257,-537.28,0.0005726,120]
[358174337,1744815669299,-1370.04,0.0005726,120]
[358174338,1744815669342,-500.0,0.0005726,120]
[358174339,1744815669384,-500.0,0.0005726,30]
[358174340,1744815669428,-713.87,0.0005726,120]
[358174341,1744815669475,-760.79,0.0005726,120]
[358174342,1744815669520,-1253.28,0.0005726,120]
[358174343,1744815669569,-699.68,0.0005726,120]
[358174344,1744815669613,-851.47,0.0005726,120]
[358174345,1744815669669,-2066.32,0.0005726,120]
[358174346,1744815669717,-776.918619,0.0005726,120]
[358174347,1744815669761,-1167.17,0.0005726,120]
[358174348,1744815669806,-843.34,0.0005726,120]
[358174349,1744815669851,-500.0,0.0005726,120]
[358174350,1744815669899,-1000.01,0.0005726,120]
[358174351,1744815669946,-500.0,0.0005726,120]
[358174352,1744815669993,-538.45,0.0005726,120]
[358174353,1744815670037,-1339.79,0.0005726,120]
[358174354,1744815670083,-1000.0,0.0005726,120]
[358174355,1744815670128,-500.0,0.0005726,120]
[358174356,1744815670173,-635.45,0.0005726,120]
[358174357,1744815670216,-500.0,0.0005726,120]
[358174358,1744815670260,-641.93,0.0005726,120]
[358174359,1744815670302,-448.02602431,0.0005726,120]
[358174360,1744815670345,-861.11,0.0005726,120]
[358174361,1744815670390,-656.9,0.0005726,120]
[358174362,1744815670434,-781.78,0.0005726,120]
[358174363,1744815670481,-874.27,0.0005726,120]
[358174364,1744815670524,-504.38070688,0.0005726,120]
[358174365,1744815670723,-1191.75,0.0005726,120]
[358174366,1744815670769,-1047.24,0.0005726,120]
[358174367,1744815670813,-500.0,0.0005726,44]
[358174368,1744815670856,-524.25,0.0005726,120]
[358174369,1744815670899,-612.20211739,0.0005726,120]
[358174370,1744815670944,-1133.53,0.0005726,120]
[358174371,1744815670989,-1889.13,0.0005726,120]
[358174372,1744815671036,-500.0,0.0005726,120]
[358174373,1744815671084,-798.31,0.0005726,118]
[358174374,1744815671127,-1348.27,0.0005726,120]
[358174375,1744815671171,-790.86,0.0005726,120]
[358174376,1744815671214,-619.72,0.0005726,120]
[358174377,1744815671258,-1016.06,0.0005726,120]
[358174378,1744815671303,-1311.2,0.0005726,120]
[358174379,1744815671347,-551.59,0.0005726,120]
[358174380,1744815671391,-753.72,0.0005726,120]
[358174381,1744815671434,-500.0,0.0005726,120]
[358174382,1744815671480,-500.0,0.0005726,120]
[358174383,1744815671524,-500.0,0.0005726,120]
[358174384,1744815671568,-585.49,0.0005726,120]
[358174385,1744815671612,-1136.67,0.0005726,120]
[358174386,1744815671657,-970.9,0.0005726,120]
[358174387,1744815671703,-1332.05,0.0005726,120]
[358174388,1744815671759,-1653.98,0.0005726,120]
[358174389,1744815671802,-670.12,0.0005726,120]
[358174390,1744815671847,-514.72,0.0005726,120]
[358174391,1744815671890,-500.0,0.0005726,120]
[358174392,1744815671934,-482.69489781,0.0005726,120]
[358174393,1744815671977,-514.96,0.0005726,120]
[358174394,1744815672022,-1299.37,0.0005726,120]
[358174395,1744815672066,-500.0,0.0005726,120]
[358174396,1744815672111,-1137.07,0.0005726,120]
[358174397,1744815672153,-908.06342047,0.0005726,35]
[358174398,1744815672200,-1135.67,0.0005726,120]
[358174399,1744815672245,-500.0,0.0005726,120]
[358174400,1744815672291,-746.39,0.0005726,120]
[358174401,1744815672335,-1616.65,0.0005726,120]
[358174402,1744815672378,-777.77,0.0005726,120]
[358174403,1744815672423,-675.56,0.0005726,120]
[358174404,1744815672470,-1832.58,0.0005726,120]
[358174405,1744815672522,-150.0,0.00057285,120]
[358174406,1744815672568,-150.0,0.00057292,120]
[358174407,1744815672614,-150.0,0.00057364,120]
[358174408,1744815672657,-5000.0,0.0005744,32]
[358174409,1744815672701,-254.43,0.000575,30]
[358174410,1744815672747,-2000.0,0.000575,90]
[358174411,1744815672791,-250.0,0.00057534,120]
[358174412,1744815672835,-1291.19,0.00057534,120]
[358174413,1744815672880,-2405.34,0.00057534,120]
[358174414,1744815672926,-500.0,0.00057534,120]
[358174415,1744815672969,-1550.92,0.00057534,120]
[358174416,1744815673016,-500.0,0.00057534,120]
[358174417,1744815673062,-821.79,0.00057534,120]
[358174418,1744815673106,-500.0,0.00057534,120]
[358174419,1744815673151,-500.0,0.00057534,120]
[358174420,1744815673192,-500.0,0.00057534,120]
[358174421,1744815673236,-500.0,0.00057534,120]
[358174422,1744815673280,-500.0,0.00057534,120]
[358174423,1744815673322,-548.6,0.00057534,120]
[358174424,1744815673364,-500.0,0.00057534,120]
[358174425,1744815673409,-500.0,0.00057534,120]
[358174426,1744815673454,-500.0,0.00057534,120]
[358174427,1744815673498,-500.0,0.00057534,120]
[358174428,1744815673542,-500.0,0.00057534,120]
[358174429,1744815673585,-525.57965353,0.00057534,120]
[358174430,1744815673628,-500.0,0.00057534,120]
[358174431,1744815673675,-500.0,0.00057534,120]
[358174432,1744815673721,-500.0,0.00057534,120]
[358174433,1744815673767,-500.0,0.00057534,120]
[358174434,1744815674034,-664.99,0.00057534,120]
[358174435,1744815674079,-500.0,0.00057534,120]
[358174436,1744815674123,-500.0,0.00057534,120]
[358174437,1744815674167,-500.0,0.00057534,120]
[358174438,1744815674212,-500.0,0.00057534,120]
[358174439,1744815674258,-436.60621918,0.00057534,120]
[358174440,1744815674305,-1154.03,0.00057534,120]
[358174441,1744815674350,-560.05,0.00057534,120]
[358174442,1744815674396,-609.62909107,0.00057534,120]
[358174443,1744815674445,-500.0,0.00057534,120]
[358174444,1744815674502,-500.0,0.00057534,120]
[358174445,1744815674552,-2348.95,0.00057534,120]
[358174446,1744815674599,-1198.89,0.00057534,120]
[358174447,1744815674644,-804.94,0.00057534,120]
[358174448,1744815674691,-500.0,0.00057534,120]
[358174449,1744815674740,-982.93,0.00057534,120]
[358174450,1744815674786,-500.0,0.00057534,120]
[358174451,1744815674833,-822.51,0.00057534,120]
[358174452,1744815674877,-875.93,0.00057534,120]
[358174453,1744815674924,-1346.23,0.00057534,120]
[358174454,1744815674969,-782.45,0.00057534,120]
[358174455,1744815675015,-835.33,0.00057534,120]
[358174456,1744815675062,-500.0,0.00057534,30]
[358174457,1744815675105,-500.0,0.00057534,120]
[358174458,1744815675148,-989.02,0.00057534,120]
[358174459,1744815675190,-540.42,0.00057534,120]
[358174460,1744815675237,-906.51,0.00057534,120]
[358174461,1744815675280,-500.0,0.00057534,120]
[358174462,1744815675323,-500.0,0.00057534,120]
[358174463,1744815675382,-942.61,0.00057534,120]
[358174464,1744815675429,-500.0,0.00057534,120]
[358174465,1744815675476,-1240.3,0.00057534,120]
[358174466,1744815675521,-727.79,0.00057534,120]
[358174467,1744815675567,-640.87,0.00057534,120]
[358174468,1744815675615,-1040.69,0.00057534,120]
[358174469,1744815675662,-1040.69,0.00057534,120]
[358174470,1744815675709,-1335.63,0.00057534,120]
[358174471,1744815675757,-1127.15,0.00057534,120]
[358174472,1744815675803,-537.28,0.00057534,120]
[358174473,1744815675847,-1370.04,0.00057534,120]
[358174474,1744815675893,-500.0,0.00057534,120]
[358174475,1744815675937,-500.0,0.00057534,30]
[358174476,1744815675983,-713.87,0.00057534,120]
[358174477,1744815676030,-151.831469,0.00057534,120]
[358174478,1744815676073,-760.79,0.00057534,120]
[358174479,1744815676118,-1253.28,0.00057534,120]
[358174480,1744815676161,-699.68,0.00057534,120]
[358174481,1744815676205,-851.47,0.00057534,120]
[358174482,1744815676249,-2066.32,0.00057534,120]
[358174483,1744815676294,-776.918619,0.00057534,120]
[358174484,1744815676344,-1167.17,0.00057534,120]
[358174485,1744815676391,-843.34,0.00057534,120]
[358174486,1744815676435,-500.0,0.00057534,120]
[358174487,1744815676479,-1000.01,0.00057534,120]
[358174488,1744815676521,-500.0,0.00057534,120]
[358174489,1744815676565,-538.45,0.00057534,120]
[358174490,1744815676609,-1339.79,0.00057534,120]
[358174491,1744815676653,-1000.0,0.00057534,120]
[358174492,1744815676699,-500.0,0.00057534,120]
[358174493,1744815676744,-635.45,0.00057534,120]
[358174494,1744815676790,-500.0,0.00057534,120]
[358174495,1744815676838,-641.93,0.00057534,120]
[358174496,1744815676882,-861.11,0.00057534,120]
[358174497,1744815676925,-656.9,0.00057534,120]
[358174498,1744815676969,-781.78,0.00057534,120]
[358174499,1744815677015,-874.27,0.00057534,120]
[358174500,1744815677061,-1191.75,0.00057534,120]
[358174501,1744815677108,-1047.24,0.00057534,120]
[358174502,1744815677154,-524.25,0.00057534,120]
[358174503,1744815677200,-1133.53,0.00057534,120]
[358174504,1744815677350,-1889.13,0.00057534,120]
[358174505,1744815677396,-544.5093197,0.00057534,120]
[358174506,1744815677439,-798.31,0.00057534,118]
[358174507,1744815677485,-1348.27,0.00057534,120]
[358174508,1744815677529,-790.86,0.00057534,120]
[358174509,1744815677571,-619.72,0.00057534,120]
[358174510,1744815677615,-1016.06,0.00057534,120]
[358174511,1744815677658,-1311.2,0.00057534,120]
[358174512,1744815677704,-551.59,0.00057534,120]
[358174513,1744815677751,-753.72,0.00057534,120]
[358174514,1744815677797,-381.15376223,0.00057534,120]
[358174515,1744815677843,-506.2,0.00057534,120]
[358174516,1744815677885,-500.0,0.00057534,120]
[358174517,1744815677928,-585.49,0.00057534,120]
[358174518,1744815677971,-1136.67,0.00057534,120]
[358174519,1744815678019,-970.9,0.00057534,120]
[358174520,1744815678062,-1332.05,0.00057534,120]
[358174521,1744815678107,-1653.98,0.00057534,120]
[358174522,1744815678153,-670.12,0.00057534,120]
[358174523,1744815678201,-514.72,0.00057534,120]
[358174524,1744815678247,-500.0,0.00057534,120]
[358174525,1744815678292,-514.96,0.00057534,120]
[358174526,1744815678334,-1299.37,0.00057534,120]
[358174527,1744815678378,-500.0,0.00057534,120]
[358174528,1744815678427,-1137.07,0.00057534,120]
[358174529,1744815678497,-1135.67,0.00057534,120]
[358174530,1744815678544,-500.0,0.00057534,120]
[358174531,1744815678590,-746.39,0.00057534,120]
[358174532,1744815678634,-1616.65,0.00057534,120]
[358174533,1744815678678,-777.77,0.00057534,120]
[358174534,1744815678726,-675.56,0.00057534,120]
[358174535,1744815678770,-1832.58,0.00057534,120]
[358174536,1744815678815,-413.75,0.00057534,120]
[358174537,1744815678859,-150.0,0.00057581,120]
[358174538,1744815678902,-150.0,0.00057681,120]
[358174539,1744815678946,-150.0,0.00057798,120]
[358174540,1744815678990,-1291.19,0.00057808,120]
[358174541,1744815679038,-2405.34,0.00057808,120]
[358174542,1744815679083,-500.0,0.00057808,120]
[358174543,1744815679127,-1550.92,0.00057808,120]
[358174544,1744815679171,-500.0,0.00057808,120]
[358174545,1744815679217,-821.79,0.00057808,120]
[358174546,1744815679263,-500.0,0.00057808,120]
[358174547,1744815679310,-500.0,0.00057808,120]
[358174548,1744815679355,-500.0,0.00057808,120]
[358174549,1744815679402,-500.0,0.00057808,120]
[358174550,1744815679448,-500.0,0.00057808,120]
[358174551,1744815679497,-548.6,0.00057808,120]
[358174552,1744815679542,-500.0,0.00057808,120]
[358174553,1744815679587,-234.46350992,0.00057808,120]
[358174554,1744815679632,-500.0,0.00057808,120]
[358174555,1744815679679,-500.0,0.00057808,120]
[358174556,1744815679727,-526.06202326,0.00057808,120]
[358174557,1744815679772,-500.0,0.00057808,120]
[358174558,1744815679817,-536.20973429,0.00057808,120]
[358174559,1744815679862,-500.0,0.00057808,120]
[358174560,1744815679906,-500.0,0.00057808,120]
[358174561,1744815679950,-664.99,0.00057808,120]
[358174562,1744815679996,-500.0,0.00057808,120]
[358174563,1744815680043,-500.0,0.00057808,120]
[358174564,1744815680085,-500.0,0.00057808,120]
[358174565,1744815680127,-500.0,0.00057808,120]
[358174566,1744815680168,-1154.03,0.00057808,120]
[358174567,1744815680211,-560.05,0.00057808,120]
[358174568,1744815680253,-500.0,0.00057808,120]
[358174569,1744815680296,-500.0,0.00057808,120]
[358174570,1744815680340,-2348.95,0.00057808,120]
[358174571,1744815680385,-1198.89,0.00057808,120]
[358174572,1744815680429,-804.94,0.00057808,120]
[358174573,1744815680474,-500.0,0.00057808,120]
[358174574,1744815680516,-982.93,0.00057808,120]
[358174575,1744815680560,-500.0,0.00057808,120]
[358174576,1744815680603,-822.51,0.00057808,120]
[358174577,1744815680646,-875.93,0.00057808,120]
[358174578,1744815680689,-1346.23,0.00057808,120]
[358174579,1744815680735,-782.45,0.00057808,120]
[358174580,1744815680779,-835.33,0.00057808,120]
[358174581,1744815680822,-500.0,0.00057808,30]
[358174582,1744815680864,-500.0,0.00057808,120]
[358174583,1744815680907,-989.02,0.00057808,120]
[358174584,1744815680951,-540.42,0.00057808,120]
[358174585,1744815680994,-906.51,0.00057808,120]
[358174586,1744815681037,-500.0,0.00057808,120]
[358174587,1744815681078,-500.0,0.00057808,120]
[358174588,1744815681120,-942.61,0.00057808,120]
[358174589,1744815681160,-574.96569044,0.00057808,120]
[358174590,1744815681201,-1240.3,0.00057808,120]
[358174591,1744815681246,-727.79,0.00057808,120]
[358174592,1744815681290,-640.87,0.00057808,120]
[358174593,1744815681334,-1040.69,0.00057808,120]
[358174594,1744815681377,-1040.69,0.00057808,120]
[358174595,1744815681420,-1335.63,0.00057808,120]
[358174596,1744815681464,-1127.15,0.00057808,120]
[358174597,1744815681507,-537.28,0.00057808,120]
[358174598,1744815681551,-1370.04,0.00057808,120]
[358174599,1744815681595,-500.0,0.00057808,120]
[358174600,1744815681638,-500.0,0.00057808,30]
[358174601,1744815681683,-713.87,0.00057808,120]
[358174602,1744815681726,-760.79,0.00057808,120]
[358174603,1744815681772,-1253.28,0.00057808,120]
[358174604,1744815681817,-699.68,0.00057808,120]
[358174605,1744815681863,-851.47,0.00057808,120]
[358174606,1744815681908,-2066.32,0.00057808,120]